bitfinex/quotes_ETHUSD_20250611
["timestamp","ask_amount","ask_price","bid_price","bid_amount"]
[1749663162956,0.1744,2866.1,2865.6,4.66845938]
[1749663163253,0.1744,2865.7,2865.6,4.66845938]
[1749663163451,0.1744,2865.7,2865.5,0.7509]
[1749663165364,1.027,2866.3,2865.5,0.7509]
[1749663165519,0.1744,2865.9,2865.6,4.66845938]
[1749663165916,0.1744,2865.9,2865.7,4.66845938]
[1749663168159,3.48882715,2866.3,2865.7,4.66845938]
[1749663168323,0.45158271,2866.2,2865.7,4.66845938]
[1749663168757,0.1744,2865.8,2865.7,4.66845938]
[1749663171844,0.1744,2865.8,2865.6,4.66845938]
[1749663173040,1.4784,2866.5,2865.6,4.66845938]
[1749663173249,0.1744,2866.1,2865.6,4.84285938]
[1749663173883,0.1744,2865.7,2865.6,4.66845938]
[1749663174081,0.1744,2865.7,2865.2,5.43155938]
[1749663174245,0.1744,2865.5,2865.2,5.43155938]
[1749663175372,0.1744,2865.3,2865.2,0.7631]
[1749663175889,0.1744,2865.3,2864.9,0.7764]
[1749663176181,0.1744,2865.1,2864.9,0.7764]
[1749663176382,3.48900068,2866.2,2865.0,10.0]
[1749663176569,0.1744,2865.4,2865.0,10.0]
[1749663176771,1.027,2866.0,2865.1,0.8098]
[1749663177089,0.1744,2865.5,2865.1,0.8098]
[1749663177669,0.1744,2865.3,2865.1,0.8098]
[1749663178059,0.1744,2865.3,2864.9,10.0]
[1749663178662,0.1744,2865.3,2864.8,10.9744]
[1749663181099,0.1744,2865.1,2864.8,10.0]
[1749663181298,0.1744,2865.1,2864.6,0.1744]
[1749663181299,12.26244729,2865.7,2864.6,2.04784441]
[1749663181505,0.1744,2864.8,2864.5,0.7682]
[1749663181861,0.55,2865.3,2864.2,2.04784441]
[1749663182204,0.1744,2864.4,2864.1,10.7682]
[1749663182497,0.1744,2864.4,2864.1,0.7682]
[1749663182699,0.1744,2864.6,2864.1,10.9426]
[1749663182906,0.1744,2864.6,2864.1,0.9426]
[1749663183265,16.77644729,2865.1,2864.1,0.7682]
[1749663183480,0.1744,2864.3,2864.1,0.7682]
[1749663183891,0.1744,2864.3,2863.8,2.82394441]
[1749663184117,0.1744,2864.0,2863.8,0.7761]
[1749663184314,4.04083556,2864.7,2863.5,2.81124441]
[1749663184615,0.1744,2863.8,2863.5,0.7634]
[1749663185338,12.26244729,2864.5,2863.2,0.8185]
[1749663185633,0.1744,2863.6,2863.2,10.8185]
[1749663185942,0.1744,2863.6,2863.2,0.8185]
[1749663187826,0.1744,2863.6,2863.1,0.1744]
[1749663188482,1.017,2864.1,2862.9,13.02354729]
[1749663188483,0.55,2864.0,2862.9,0.7611]
[1749663188725,0.1744,2863.3,2862.9,0.7611]
[1749663188925,0.1744,2863.3,2863.2,12.26244729]
[1749663189227,0.1744,2863.3,2863.2,22.26244729]
[1749663190525,0.1744,2863.3,2863.2,10.0]
[1749663191024,10.0,2864.7,2863.3,10.8033]
[1749663191230,2.0324806,2865.0,2863.6,10.8033]
[1749663191398,13.27944729,2865.9,2864.4,0.8033]
[1749663191600,20.25687053,2865.9,2864.4,0.8033]
[1749663191800,3.48971306,2865.6,2864.4,0.8033]
[1749663192016,12.26244729,2865.6,2864.4,0.8033]
[1749663192220,2.24324473,2865.5,2864.4,10.8033]
[1749663192402,0.1744,2865.0,2864.5,0.1744]
[1749663192599,0.1744,2865.0,2864.7,10.0]
[1749663195495,0.1744,2865.0,2864.8,0.814]
[1749663198153,0.1744,2865.0,2864.9,0.00263159]
[1749663198656,0.1744,2865.0,2864.8,0.814]
[1749663198876,0.1744,2865.0,2864.5,15.67045938]
[1749663199026,0.1744,2864.8,2864.5,15.49605938]
[1749663200164,0.1744,2864.8,2864.5,15.49605938]
[1749663200984,0.1744,2864.8,2864.5,14.66845938]
[1749663201387,0.1744,2864.8,2864.5,10.0]
[1749663201594,0.1744,2864.8,2864.4,10.0]
[1749663202496,1.017,2865.4,2864.4,11.55934594]
[1749663202664,0.1744,2865.1,2864.7,10.0]
[1749663203339,0.1744,2865.1,2864.8,0.7525]
[1749663204155,12.43684729,2865.1,2864.2,2.04784441]
[1749663204372,0.55,2864.4,2863.4,2.04784441]
[1749663204593,0.55,2864.0,2862.9,0.7658]
[1749663204880,0.55,2863.7,2862.5,0.7658]
[1749663206782,12.26244729,2863.2,2862.1,10.0]
[1749663207005,3.488,2863.1,2861.9,1.44706667]
[1749663207212,1.22624473,2863.1,2862.1,12.26244729]
[1749663207522,3.488,2863.4,2862.0,19.65524375]
[1749663207679,3.488,2863.4,2862.0,23.14324375]
[1749663208085,0.55,2863.0,2861.9,1.44706667]
[1749663208272,0.55,2863.0,2861.9,0.66666667]
[1749663208273,0.55,2862.8,2861.9,0.66666667]
[1749663208469,9.65524375,2862.3,2861.9,0.66666667]
[1749663208684,0.96552438,2862.2,2861.9,0.66666667]
[1749663208884,10.0,2862.5,2861.9,0.66666667]
[1749663208885,3.488,2862.4,2861.9,0.66666667]
[1749663209092,0.55,2862.7,2861.9,0.66666667]
[1749663209394,4.04303544,2862.9,2861.9,0.66666667]
[1749663209591,0.55,2862.6,2861.9,0.66666667]
[1749663209927,14.039,2862.7,2861.9,0.66666667]
[1749663210277,0.55,2862.0,2861.9,0.66666667]
[1749663210578,3.489,2862.3,2861.9,0.66666667]
[1749663210788,3.489,2862.5,2861.9,0.66666667]
[1749663211419,0.34682121,2862.8,2861.9,0.66666667]
[1749663211602,9.65524375,2863.4,2861.9,0.66666667]
[1749663211603,10.0,2863.2,2861.9,0.66666667]
[1749663211782,0.55,2863.0,2861.9,0.66666667]
[1749663211983,0.55,2862.8,2861.9,0.66666667]
[1749663212610,3.49,2862.9,2861.9,0.66666667]
[1749663212780,0.55,2862.8,2861.9,0.66666667]
[1749663212982,13.69842614,2862.8,2861.9,0.66666667]
[1749663213184,5.21206235,2862.7,2861.9,0.66666667]
[1749663213998,11.71884261,2862.7,2861.9,0.66666667]
[1749663214193,3.4933344,2862.6,2861.9,0.66666667]
[1749663214380,9.65524375,2862.5,2861.9,0.66666667]
[1749663215524,1.71884261,2862.7,2861.9,0.66666667]
[1749663215724,3.49,2862.6,2861.9,0.66666667]
[1749663215922,0.1744,2862.1,2862.0,0.7898]
[1749663216233,10.00206273,2863.4,2862.0,0.9642]
[1749663216234,0.1744,2862.5,2862.0,0.9642]
[1749663216429,9.65524375,2863.7,2862.0,0.9642]
[1749663216589,0.1744,2862.6,2862.0,0.7898]
[1749663216794,0.1744,2862.6,2862.1,1.32004667]
[1749663217229,3.49,2863.1,2862.1,1.14564667]
[1749663217445,0.1744,2862.4,2862.0,0.7898]
[1749663218203,0.55,2863.0,2862.0,0.7898]
[1749663218525,3.49,2863.1,2862.0,0.7898]
[1749663218734,0.1744,2862.3,2862.0,0.7898]
[1749663221109,3.49297551,2862.9,2861.9,0.66666667]
[1749663221344,6.9827771,2863.1,2861.9,0.66666667]
[1749663221345,0.1744,2862.0,2861.9,0.66666667]
[1749663222532,10.0,2863.3,2861.9,0.66666667]
[1749663222533,3.49,2863.0,2861.9,0.66666667]
[1749663222740,0.1744,2862.4,2861.9,0.84106667]
[1749663223477,3.49,2863.0,2861.9,0.66666667]
[1749663223676,0.1744,2862.1,2861.9,0.66666667]
[1749663226443,3.49326182,2862.7,2861.9,0.66666667]
[1749663226444,3.49345828,2862.5,2861.9,0.66666667]
[1749663226868,0.1744,2861.9,2861.6,0.7804]
[1749663227063,0.89932618,2862.6,2861.6,0.7804]
[1749663227064,0.1744,2861.7,2861.6,0.7804]
[1749663228102,0.34932618,2862.6,2861.6,13.07956939]
[1749663228384,12.29916939,2862.6,2861.6,0.7804]
[1749663228573,0.1744,2861.7,2861.6,0.7804]
[1749663229496,0.1744,2861.7,2861.3,0.7709]
[1749663230602,12.29916939,2862.0,2860.8,0.7804]
[1749663230758,0.1744,2861.3,2860.8,0.7804]
[1749663231865,15.79365731,2861.7,2860.5,0.7804]
[1749663232065,0.1744,2860.7,2860.5,0.7804]
[1749663232301,0.55,2861.6,2860.5,0.7804]
[1749663232517,12.29916939,2861.7,2860.5,0.7804]
[1749663232518,0.55,2861.4,2860.5,0.7804]
[1749663232709,1.28491694,2861.5,2860.5,0.7804]
[1749663232909,4.77591694,2861.5,2860.6,10.0]
[1749663233093,0.1744,2861.0,2860.6,10.0]
[1749663233882,0.1744,2861.0,2860.5,0.9548]
[1749663236189,0.1744,2861.0,2860.7,10.0]
[1749663236396,0.1744,2861.0,2860.6,12.29916939]
[1749663236397,0.1744,2861.3,2861.0,10.0]
[1749663236997,0.1744,2861.3,2860.8,0.925]
[1749663236998,0.1744,2861.3,2861.2,22.29916939]
[1749663237225,0.1744,2861.5,2861.2,22.29916939]
[1749663237424,0.1744,2861.5,2861.2,10.0]
[1749663237720,0.35042558,2862.2,2861.2,10.0]
[1749663237885,0.1744,2861.3,2861.2,10.0]
[1749663238726,1.035,2862.5,2861.2,10.0]
[1749663238727,1.035,2862.4,2861.4,0.7506]
[1749663238929,0.1744,2861.7,2861.4,0.7506]
[1749663240633,0.55,2862.2,2861.1,0.769]
[1749663240931,0.1744,2861.3,2860.8,0.9753]
[1749663241127,12.29916939,2862.0,2860.8,0.8009]
[1749663241434,12.29916939,2862.0,2860.6,0.1744]
[1749663241435,0.1744,2861.1,2860.6,0.1744]
[1749663242002,0.1744,2861.1,2860.1,1.21369358]
[1749663242003,15.79116939,2861.7,2859.9,0.8009]
[1749663242216,0.1744,2860.6,2860.0,0.1744]
[1749663242401,5.06205101,2861.6,2859.9,0.8009]
[1749663242402,12.29916939,2861.1,2859.9,0.8009]
[1749663242614,0.1744,2860.2,2859.7,0.1744]
[1749663242824,0.1744,2860.2,2859.1,2.73045921]
[1749663243141,0.1744,2860.2,2859.0,0.1822041]
[1749663243142,0.1744,2860.2,2859.0,12.29916939]
[1749663243295,0.55,2860.1,2858.8,0.8009]
[1749663244011,3.492,2860.1,2859.0,10.0]
[1749663244335,0.55,2860.1,2859.0,0.8009]
[1749663244633,4.04640732,2860.1,2859.0,0.8009]
[1749663244817,12.29916939,2859.9,2858.6,0.8009]
[1749663245017,1.22991694,2859.8,2858.6,0.8009]
[1749663245423,0.55,2859.9,2858.6,0.8009]
[1749663245635,4.04712191,2859.5,2858.2,0.8009]
[1749663245834,0.55,2859.8,2858.2,10.48289283]
[1749663246002,0.34655037,2859.9,2858.2,0.8009]
[1749663246196,10.55,2859.8,2857.4,0.8009]
[1749663246427,10.55,2859.8,2857.7,0.8009]
[1749663246428,0.55,2859.3,2857.7,0.8009]
[1749663246823,0.55,2859.2,2857.7,0.8009]
[1749663247231,3.49746255,2859.3,2857.7,0.8009]
[1749663247232,0.55,2859.3,2857.7,0.8009]
[1749663247671,6.80355331,2860.6,2857.9,10.0]
[1749663247672,0.55,2859.7,2857.9,10.0]
[1749663247874,10.0,2859.6,2858.0,0.804]
[1749663248059,1.4042,2859.5,2858.2,10.0]
[1749663248248,0.55,2859.6,2858.2,10.0]
[1749663248445,4.5436629,2859.9,2858.2,10.0]
[1749663248446,1.047,2859.9,2858.2,10.0]
[1749663248678,0.34773368,2859.6,2858.2,13.493]
[1749663248844,0.55,2859.2,2858.0,0.804]
[1749663249049,0.34773368,2859.6,2858.0,0.804]
[1749663249050,9.68199283,2859.5,2858.0,0.804]
[1749663249248,1.00297265,2859.4,2858.0,0.804]
[1749663249480,1.047,2859.7,2858.2,10.0]
[1749663249997,0.55,2859.6,2858.0,0.804]
[1749663250155,1.047,2859.7,2858.2,13.493]
[1749663250361,1.047,2859.7,2858.3,0.7744]
[1749663250890,0.55,2860.0,2858.4,9.68199283]
[1749663250891,4.043,2860.0,2858.4,9.68199283]
[1749663251047,0.55,2859.8,2858.5,12.04563928]
[1749663251383,3.494,2860.4,2858.6,0.76]
[1749663251569,0.55,2860.1,2858.6,0.76]
[1749663251772,1.048,2860.5,2858.7,14.35045221]
[1749663252104,8.03789352,2860.5,2858.9,0.76]
[1749663252408,0.55,2860.3,2859.1,10.0]
[1749663252545,0.80378935,2860.4,2859.3,10.0]
[1749663252753,9.053,2861.0,2859.5,10.0]
[1749663252754,3.494,2860.8,2859.5,10.0]
[1749663252965,1.048,2860.9,2859.4,0.7667]
[1749663253172,1.048,2860.9,2859.4,10.7667]
[1749663253494,0.1744,2860.1,2859.7,0.7667]
[1749663253801,0.82587839,2862.1,2860.0,10.7667]
[1749663253975,0.35465479,2861.5,2860.0,10.7667]
[1749663254173,0.83911554,2861.5,2860.2,10.0]
[1749663254562,1.048,2861.7,2860.3,0.7667]
[1749663255695,1.39150757,2861.7,2860.3,0.7667]
[1749663256104,1.048,2861.7,2860.3,0.7667]
[1749663257198,4.54247313,2861.7,2860.3,0.7667]
[1749663257401,1.048,2861.7,2860.3,0.7667]
[1749663257699,1.1048,2861.6,2860.3,0.7667]
[1749663261101,0.55,2861.3,2860.3,0.7667]
[1749663261502,0.55,2861.4,2860.3,0.7667]
[1749663261678,0.55,2861.3,2860.3,0.7667]
[1749663262404,0.55,2861.4,2860.3,0.7667]
[1749663262611,0.40446846,2861.3,2860.3,0.7667]
[1749663263703,0.95446846,2861.3,2860.3,0.7667]
[1749663263899,0.1744,2860.5,2860.3,0.7667]
[1749663267615,23.4130747,2861.6,2860.4,10.0]
[1749663267616,0.1744,2860.7,2860.4,10.0]
[1749663269124,0.1744,2860.7,2860.5,0.7955]
[1749663269582,0.1744,2860.7,2860.6,10.0]
[1749663275520,0.1744,2860.7,2860.2,10.8129]
[1749663275832,6.98792182,2861.3,2860.2,10.8129]
[1749663275833,0.1744,2860.5,2860.2,10.8129]
[1749663276034,0.1744,2860.5,2860.3,4.66845938]
[1749663277723,0.1744,2860.5,2860.3,18.52487002]
[1749663277916,0.1744,2860.7,2860.5,0.801]
[1749663278100,9.057,2862.4,2860.7,0.801]
[1749663278300,9.057,2862.4,2861.2,10.0]
[1749663278301,0.1744,2861.3,2861.2,10.0]
[1749663278502,10.081,2862.4,2861.1,12.3082747]
[1749663278503,0.1744,2861.6,2861.1,12.3082747]
[1749663278706,0.1744,2861.6,2861.2,10.0]
[1749663278917,0.1744,2861.6,2861.3,0.7553]
[1749663285411,0.55,2861.9,2860.7,0.8106]
[1749663285621,0.1744,2861.1,2860.7,0.8106]
[1749663285927,12.3082747,2861.7,2860.4,0.985]
[1749663285928,0.1744,2860.9,2860.4,0.985]
[1749663286133,0.1744,2860.7,2860.2,0.1744]
[1749663290044,0.1744,2860.7,2859.3,2.73045921]
[1749663290045,0.55,2860.1,2859.3,2.73045921]
[1749663290346,2.079,2860.0,2858.7,10.0]
[1749663290531,2.079,2860.0,2858.9,12.3082747]
[1749663290532,4.516,2860.0,2858.9,12.3082747]
[1749663290910,4.516,2860.0,2858.6,1.1592246]
[1749663290911,8.01243139,2860.1,2858.7,22.3082747]
[1749663291110,8.01243139,2860.1,2858.8,10.0]
[1749663291431,8.01243139,2860.1,2858.7,12.3082747]
[1749663291632,0.80124314,2860.0,2858.8,10.0]
[1749663292849,3.49650238,2860.1,2858.7,11.34674993]
[1749663293059,6.98951321,2860.0,2858.7,11.34674993]
[1749663293508,8.01351321,2860.0,2858.7,11.34674993]
[1749663293708,8.0135755,2860.0,2858.7,11.34674993]
[1749663293913,4.517,2860.0,2858.6,10.8074]
[1749663294239,6.98953008,2860.0,2858.6,10.8074]
[1749663294828,3.493,2860.0,2858.6,23.1156747]
[1749663295009,6.98955773,2860.0,2858.6,23.1156747]
[1749663295210,3.493,2860.0,2858.6,23.1156747]
[1749663295450,12.3082747,2859.8,2858.6,0.8074]
[1749663295758,15.80547318,2859.5,2858.6,0.8074]
[1749663295942,12.3082747,2859.5,2858.6,0.8074]
[1749663297644,3.493,2859.4,2858.6,0.8074]
[1749663298061,12.3082747,2859.8,2858.6,0.8074]
[1749663298258,3.493,2859.3,2858.6,0.8074]
[1749663299189,0.51749937,2859.7,2858.6,0.8074]
[1749663299390,3.494,2859.6,2858.6,0.8074]
[1749663299873,0.1744,2858.9,2858.6,0.8074]
[1749663300696,0.1744,2858.9,2858.4,0.1744]
[1749663301043,0.1744,2858.9,2858.3,5.45085938]
[1749663301044,15.80582152,2859.2,2858.3,0.7824]
[1749663301244,15.80582152,2859.2,2858.2,10.0]
[1749663301245,0.1744,2858.5,2858.2,10.0]
[1749663301466,0.4517,2859.1,2858.0,0.7824]
[1749663301467,0.1744,2858.2,2858.0,0.7824]
[1749663301665,0.4517,2859.1,2858.0,0.7824]
[1749663301856,0.1744,2858.4,2858.0,10.7824]
[1749663302060,0.1744,2858.4,2858.0,15.45085938]
[1749663302479,0.1744,2858.4,2858.0,5.45085938]
[1749663302696,0.1744,2858.1,2857.7,0.7824]
[1749663303880,0.55,2858.6,2857.7,0.7824]
[1749663304270,12.3082747,2858.7,2857.7,0.7824]
[1749663304470,0.55,2858.7,2857.7,0.7824]
[1749663304692,12.8582747,2858.7,2857.7,0.7824]
[1749663304901,1.63563078,2858.6,2857.7,0.7824]
[1749663305595,12.65010484,2858.9,2857.7,0.7824]
[1749663305798,0.34183014,2858.9,2857.7,10.7824]
[1749663305973,0.4517,2859.1,2858.1,0.7824]
[1749663306298,0.34207887,2860.4,2858.2,10.0]
[1749663306509,10.0,2859.6,2858.2,14.66845938]
[1749663306710,4.52,2859.5,2858.2,14.66845938]
[1749663306874,3.49654185,2860.0,2858.3,13.0906747]
[1749663306875,3.49659321,2860.0,2858.3,13.0906747]
[1749663307079,16.8282747,2859.9,2858.4,10.0]
[1749663307280,6.20282747,2859.8,2858.4,14.66845938]
[1749663307477,2.70782747,2859.8,2858.7,10.0]
[1749663307782,1.025,2859.8,2858.8,0.7824]
[1749663307981,3.495,2859.8,2858.9,10.0]
[1749663308175,15.8043685,2860.4,2858.9,10.0]
[1749663308381,1.022,2860.3,2858.9,10.0]
[1749663308680,1.022,2860.3,2859.0,0.7988]
[1749663308882,4.82802747,2860.2,2859.0,5.46725938]
[1749663309097,8.68000954,2860.2,2859.0,5.46725938]
[1749663309281,5.18500782,2860.2,2859.0,5.46725938]
[1749663309518,10.0,2860.0,2859.0,5.46725938]
[1749663309718,13.49656131,2860.0,2859.0,5.46725938]
[1749663310028,1.31869937,2859.9,2859.0,5.46725938]
[1749663310228,10.0,2859.7,2859.0,4.66845938]
[1749663310377,12.3082747,2859.5,2858.4,0.8217]
[1749663310581,3.495,2859.4,2858.4,0.8217]
[1749663310826,6.99225812,2859.4,2858.4,0.8217]
[1749663310981,11.33302747,2859.3,2858.4,0.8217]
[1749663311415,3.495,2859.2,2858.4,0.8217]
[1749663311784,3.495,2859.2,2858.1,0.8217]
[1749663311785,10.55,2859.1,2858.1,0.8217]
[1749663312125,10.55,2858.9,2857.6,0.8217]
[1749663312277,10.55,2858.6,2857.6,0.8217]
[1749663312478,1.31869937,2858.5,2857.6,0.8217]
[1749663312679,0.1744,2858.0,2857.6,0.8217]
[1749663313503,10.0,2858.6,2857.6,0.8217]
[1749663313783,0.1744,2858.2,2857.6,0.9961]
[1749663317023,0.1744,2858.3,2857.8,0.1744]
[1749663317220,0.1744,2858.3,2857.9,0.8214]
[1749663318821,10.83007407,2859.6,2858.2,0.9876]
[1749663318822,4.517,2859.6,2858.2,0.9876]
[1749663318982,0.1744,2858.7,2858.2,0.9876]
[1749663319382,4.517,2859.6,2858.2,0.9876]
[1749663319383,8.01409247,2859.6,2858.2,0.8132]
[1749663319690,0.1744,2858.4,2858.2,0.8132]
[1749663321018,0.1744,2858.4,2858.2,0.80169]
[1749663321195,0.0115,2858.9,2858.2,0.80169]
[1749663321394,0.1744,2858.2,2857.6,10.0]
[1749663321595,0.1744,2858.1,2857.6,10.0]
[1749663322116,0.1744,2858.3,2857.8,0.1744]
[1749663324220,0.1744,2858.3,2857.9,0.781]
[1749663325695,0.1744,2858.3,2858.0,4.66845938]
[1749663325897,0.1744,2858.3,2858.0,5.23084532]
[1749663326087,0.1744,2858.3,2858.1,0.7689]
[1749663326487,0.1744,2858.8,2858.3,0.8033]
[1749663326719,0.1744,2858.8,2858.4,4.66845938]
[1749663326887,1.0335,2859.5,2858.6,0.8033]
[1749663327092,0.1744,2859.0,2858.6,0.8033]
[1749663328032,1.0335,2859.5,2858.6,0.8033]
[1749663328194,0.1744,2858.8,2858.6,0.8033]
[1749663328526,0.1744,2858.8,2858.6,5.47175938]
[1749663328894,0.1744,2858.8,2858.3,0.7545]
[1749663329121,0.1744,2858.6,2858.3,0.7545]
[1749663329324,1.0335,2859.5,2858.3,0.7545]
[1749663329524,0.1744,2858.8,2858.3,0.7545]
[1749663329735,0.1744,2858.8,2858.4,10.0]
[1749663329913,0.1744,2858.8,2858.4,10.1744]
[1749663330329,0.1744,2858.8,2858.4,10.0]
[1749663333799,0.1744,2858.8,2858.5,12.32566039]
[1749663333999,0.1744,2858.8,2858.6,13.03246604]
[1749663335152,0.1744,2859.0,2858.6,13.03246604]
[1749663335732,0.1744,2859.0,2858.9,10.0]
[1749663335898,0.0115,2860.0,2859.0,0.8186]
[1749663336098,0.1744,2859.8,2859.5,0.8186]
[1749663337311,0.0115,2860.7,2859.5,0.8186]
[1749663337527,0.1744,2860.0,2859.5,5.66145938]
[1749663337853,0.1744,2860.2,2859.7,0.1744]
[1749663338737,0.0115,2860.7,2859.6,14.66845938]
[1749663339054,0.1744,2860.0,2859.6,10.0]
[1749663339427,0.1744,2859.8,2859.6,10.0]
[1749663340756,0.1744,2859.8,2859.5,0.8186]
[1749663340955,0.0115,2860.1,2859.3,10.0]
[1749663341170,0.1744,2859.6,2858.8,0.7792]
[1749663341475,0.0115,2859.5,2858.2,12.32566039]
[1749663341631,0.0115,2859.5,2858.3,5.52916604]
[1749663341826,0.0115,2859.5,2858.3,5.87737866]
[1749663342025,0.0115,2859.5,2858.5,12.32566039]
[1749663342232,0.0115,2859.5,2858.6,10.0]
[1749663343075,0.0115,2859.5,2858.8,12.32566039]
[1749663343234,12.32566039,2860.3,2858.6,2.31207604]
[1749663343235,0.0115,2859.9,2859.1,12.32566039]
[1749663346447,0.0115,2859.9,2859.1,10.0]
[1749663346686,0.0115,2859.9,2858.9,10.7951]
[1749663347957,0.0115,2859.9,2858.9,23.12076039]
[1749663348147,0.0115,2859.9,2858.9,24.57920141]
[1749663348894,0.0115,2859.9,2859.2,12.32566039]
[1749663349089,0.0115,2860.3,2859.5,12.32566039]
[1749663349279,0.0115,2860.3,2859.5,13.08346039]
[1749663349474,0.0115,2860.3,2859.6,10.0]
[1749663349672,1.018,2860.4,2859.6,10.0]
[1749663349984,0.0115,2860.6,2859.6,10.64512104]
[1749663350285,1.018,2860.9,2859.6,14.13912104]
[1749663350584,1.018,2860.9,2859.6,18.80758042]
[1749663351264,0.1744,2860.1,2859.6,18.98198042]
[1749663351447,0.1744,2860.1,2859.8,10.0]
[1749663352900,0.1744,2860.1,2859.8,23.87445843]
[1749663355319,0.1744,2860.1,2859.9,4.66845938]
[1749663359569,0.1744,2860.1,2860.0,10.0]
[1749663359769,10.071,2861.0,2860.0,14.66845938]
[1749663360013,0.1744,2860.3,2860.2,10.0]
[1749663360219,0.1744,2860.3,2860.2,14.66845938]
[1749663360434,1.018,2861.0,2860.2,14.66845938]
[1749663360598,1.018,2861.0,2859.7,3.6684]
[1749663360599,0.1744,2860.2,2859.9,10.0]
[1749663360800,0.1744,2860.2,2859.9,14.66845938]
[1749663360994,12.32566039,2860.7,2859.7,0.1744]
[1749663361212,15.82140659,2860.7,2859.7,0.1744]
[1749663361385,0.1744,2859.8,2859.4,10.7687]
[1749663361718,0.1744,2859.8,2859.4,12.32985594]
[1749663362495,0.1744,2859.8,2859.4,10.0]
[1749663363302,1.017,2860.7,2859.8,0.7687]
[1749663363616,0.1744,2860.1,2859.8,0.7687]
[1749663364134,4.511,2860.7,2859.7,10.0]
[1749663364135,16.83666039,2860.7,2859.7,10.0]
[1749663364283,0.1744,2859.8,2859.4,10.7687]
[1749663364484,12.32566039,2860.4,2859.0,0.7687]
[1749663364485,0.1744,2859.4,2859.0,0.7687]
[1749663364717,0.1744,2859.4,2858.9,4.66845938]
[1749663364918,12.32566039,2859.8,2858.9,4.66845938]
[1749663364919,0.1744,2859.1,2858.9,4.66845938]
[1749663365122,0.1744,2859.1,2858.4,0.7687]
[1749663365307,0.1744,2858.8,2858.4,1.3472372]
[1749663365521,12.32566039,2859.8,2858.4,1.3472372]
[1749663365725,0.1744,2858.9,2858.4,16.19009658]
[1749663365933,0.1744,2858.9,2858.6,10.0]
[1749663368945,0.1744,2858.9,2858.6,22.32566039]
[1749663369100,4.511,2859.9,2858.8,10.0]
[1749663369304,0.55,2859.8,2858.9,4.66845938]
[1749663369531,5.061,2859.8,2858.9,4.66845938]
[1749663369735,1.55138979,2859.7,2858.9,4.34525318]
[1749663370037,0.1744,2859.0,2858.9,14.34525318]
[1749663370245,1.55138979,2859.7,2858.9,14.34525318]
[1749663370412,0.1744,2859.2,2859.0,4.34525318]
[1749663377045,1.55138979,2859.7,2859.1,14.34525318]
[1749663377227,0.1744,2859.6,2859.1,14.51965318]
[1749663377416,0.1744,2859.6,2859.1,18.01465318]
[1749663378054,0.1744,2859.6,2859.3,10.0]
[1749663378427,0.1744,2859.6,2859.2,10.0]
[1749663379608,1.55138979,2859.7,2858.6,0.7514]
[1749663379807,0.1744,2859.2,2858.7,10.1744]
[1749663380024,0.1744,2859.2,2858.8,3.494]
[1749663380326,0.1744,2859.2,2858.4,12.90419759]
[1749663380327,1.1914,2859.2,2857.9,0.8159]
[1749663380630,4.68895813,2859.2,2857.9,0.8159]
[1749663381024,4.68895813,2859.2,2857.9,1.15906071]
[1749663381435,4.51455813,2859.2,2857.9,1.15906071]
[1749663381620,4.51455813,2859.2,2857.5,12.32566039]
[1749663381621,12.32566039,2859.0,2857.5,0.7702]
[1749663381820,15.82350408,2859.0,2857.6,3.494]
[1749663382020,12.32566039,2859.0,2857.6,3.494]
[1749663382420,15.82341915,2859.0,2857.5,1.11256689]
[1749663382634,3.49798463,2858.8,2857.5,1.11256689]
[1749663382853,3.494,2858.7,2857.5,1.11256689]
[1749663383236,0.61849878,2859.1,2857.5,1.11256689]
[1749663383237,1.55138979,2859.7,2858.6,10.0]
[1749663383611,1.55138979,2859.7,2858.6,3.495]
[1749663384011,5.04830372,2859.7,2858.6,3.495]
[1749663384220,5.04830372,2859.7,2858.4,0.8244]
[1749663384221,3.99983037,2859.6,2858.4,0.8244]
[1749663384649,0.50483037,2859.6,2858.4,0.8244]
[1749663384948,1.017,2859.5,2858.4,0.8244]
[1749663385548,1.017,2859.5,2858.4,13.15006039]
[1749663386719,1.017,2859.6,2858.4,13.15006039]
[1749663387115,1.55138979,2859.7,2858.3,10.35760339]
[1749663387116,1.55138979,2859.7,2859.0,12.32566039]
[1749663387357,1.55138979,2859.7,2859.3,12.32566039]
[1749663387550,1.55138979,2859.7,2859.0,23.10666039]
[1749663387756,1.55138979,2859.7,2859.0,26.7193119]
[1749663387958,1.55138979,2859.7,2858.4,10.8228]
[1749663389945,1.55138979,2859.7,2858.4,11.17808577]
[1749663390341,0.1744,2858.8,2858.4,11.17808577]
[1749663390565,0.1744,2858.8,2858.4,10.8228]
[1749663391378,0.1744,2858.8,2858.3,10.1744]
[1749663391695,0.1744,2858.6,2858.1,0.9609]
[1749663391851,0.55,2859.2,2857.8,0.7865]
[1749663392057,0.55,2859.2,2857.8,0.9609]
[1749663392058,0.1744,2858.3,2857.8,0.9609]
[1749663392259,0.1744,2858.3,2857.9,1.09609]
[1749663392785,10.0,2859.6,2857.9,10.77800428]
[1749663393082,0.1744,2858.7,2858.3,10.0]
[1749663395163,1.017,2859.3,2858.4,0.7823]
[1749663395357,0.1744,2858.8,2858.4,0.7823]
[1749663396585,0.1744,2858.8,2858.5,0.00263748]
[1749663399579,0.1744,2858.8,2858.3,0.1744]
[1749663400005,4.51343994,2859.3,2857.9,11.85649]
[1749663400205,0.1744,2858.3,2857.9,14.2554]
[1749663400591,0.1744,2858.3,2857.9,0.7604]
[1749663400805,0.1744,2858.3,2857.9,10.7604]
[1749663401168,0.1744,2858.3,2857.9,0.7604]